fUSD/lending_fUSD_20250510
["ID","MTS","AMOUNT","RATE_DAILY","PERIOD"]
[360554043,1746885046252,-93.27178043,0.00019999,2]
[360554044,1746885046265,-1200.23821957,0.00019999,2]
[360554045,1746885046275,-1293.51,0.00019999,2]
[360554046,1746885046285,-1293.51,0.00019999,2]
[360554047,1746885046294,-1293.51,0.00019999,2]
[360554048,1746885046303,-1293.51,0.00019999,2]
[360554049,1746885046313,-1293.51,0.00019999,2]
[360554050,1746885046322,-1293.51,0.00019999,2]
[360554051,1746885046331,-1293.51,0.00019999,2]
[360554052,1746885046341,-1293.51,0.00019999,2]
[360554053,1746885046350,-1293.51,0.00019999,2]
[360554054,1746885046359,-1293.51,0.00019999,2]
[360554055,1746885046369,-1293.51,0.00019999,2]
[360554056,1746885046378,-1293.51,0.00019999,2]
[360554057,1746885046387,-1293.51,0.00019999,2]
[360554058,1746885046396,-1293.51,0.00019999,2]
[360554059,1746885046405,-1293.51,0.00019999,2]
[360554060,1746885046415,-1293.51,0.00019999,2]
[360554061,1746885046424,-1293.51,0.00019999,2]
[360554062,1746885046433,-1293.51,0.00019999,2]
[360554063,1746885046442,-1293.51,0.00019999,2]
[360554064,1746885046451,-1293.51,0.00019999,2]
[360554065,1746885046460,-1293.64024626,0.00019999,2]
[360554066,1746885046470,-400.0,0.00019999,2]
[360554067,1746885046479,-400.0,0.00019999,2]
[360554068,1746885046488,-432.14,0.00019999,2]
[360554069,1746885046497,-166.91254303,0.00019999,2]
[360554070,1746885046506,-400.0,0.00019999,2]
[360554071,1746885046518,-400.0,0.00019999,2]
[360554072,1746885046527,-400.0,0.00019999,2]
[360554073,1746885046536,-400.0,0.00019999,2]
[360554074,1746885046545,-400.0,0.00019999,2]
[360554075,1746885046556,-400.0,0.00019999,2]
[360554076,1746885046565,-400.0,0.00019999,2]
[360554077,1746885046575,-400.0,0.00019999,2]
[360554078,1746885046584,-400.0,0.00019999,2]
[360554079,1746885046594,-400.0,0.00019999,2]
[360554080,1746885046603,-400.0,0.00019999,2]
[360554081,1746885046612,-237.63635879,0.00019999,2]
[360554082,1746885046622,-534.01,0.00019999,2]
[360554083,1746885046631,-776.45,0.00019999,2]
[360554084,1746885046640,-776.45,0.00019999,2]
[360554085,1746885046650,-776.45,0.00019999,2]
[360554086,1746885046660,-776.45,0.00019999,2]
[360554087,1746885046669,-776.45,0.00019999,2]
[360554088,1746885046678,-776.45,0.00019999,2]
[360554089,1746885046688,-776.45,0.00019999,2]
[360554090,1746885046700,-776.45,0.00019999,2]
[360554091,1746885046709,-776.45,0.00019999,2]
[360554092,1746885046718,-776.45,0.00019999,2]
[360554093,1746885046727,-776.45,0.00019999,2]
[360554094,1746885046739,-776.45,0.00019999,2]
[360554095,1746885046748,-776.45,0.00019999,2]
[360554096,1746885046758,-776.45,0.00019999,2]
[360554097,1746885046771,-776.45,0.00019999,2]
[360554098,1746885046781,-776.45,0.00019999,2]
[360554099,1746885046790,-776.45,0.00019999,2]
[360554100,1746885046799,-776.45,0.00019999,2]
[360554101,1746885046809,-776.45,0.00019999,2]
[360554102,1746885046819,-776.45,0.00019999,2]
[360554103,1746885046829,-776.45,0.00019999,2]
[360554104,1746885046840,-776.45,0.00019999,2]
[360554105,1746885046849,-776.45,0.00019999,2]
[360554106,1746885046859,-776.64772162,0.00019999,2]
[360554107,1746885046868,-552.62,0.00019999,2]
[360554108,1746885046878,-552.62,0.00019999,2]
[360554109,1746885046889,-552.62,0.00019999,2]
[360554110,1746885046900,-552.62,0.00019999,2]
[360554111,1746885046910,-497.30748789,0.00019999,2]
[360554112,1746885046921,-552.62,0.00019999,2]
[360554113,1746885046931,-552.62,0.00019999,2]
[360554114,1746885046941,-552.62,0.00019999,2]
[360554115,1746885046951,-552.62,0.00019999,2]
[360554116,1746885046960,-552.62,0.00019999,2]
[360554117,1746885046969,-552.62,0.00019999,2]
[360554118,1746885046978,-552.62,0.00019999,2]
[360554119,1746885046989,-450.0,0.00019999,2]
[360554120,1746885046998,-277.7574229,0.00019999,2]
[360554121,1746885047015,-274.8625771,0.00019999,2]
[360554122,1746885047024,-212.9374229,0.00019999,2]
[360554123,1746885047036,-339.6825771,0.00019999,2]
[360554124,1746885047045,-552.62,0.00019999,2]
[360554125,1746885047054,-204.46052433,0.00019999,2]
[360554126,1746885047069,-348.15947567,0.00019999,2]
[360554127,1746885047079,-552.62,0.00019999,2]
[360554128,1746885047089,-552.62,0.00019999,2]
[360554129,1746885047098,-552.62,0.00019999,2]
[360554130,1746885047107,-552.62,0.00019999,2]
[360554131,1746885047116,-552.62,0.00019999,2]
[360554132,1746885047125,-552.62,0.00019999,2]
[360554133,1746885047135,-552.62,0.00019999,2]
[360554134,1746885047144,-552.62,0.00019999,2]
[360554135,1746885047154,-552.62571386,0.00019999,2]
[360554136,1746885047162,-775.2,0.00019999,2]
[360554137,1746885047172,-250.54446621,0.00019999,2]
[360554138,1746885047183,-517.65,0.00019999,2]
[360554139,1746885047194,-7.00553379,0.00019999,2]
[360554140,1746885047204,-775.2,0.00019999,2]
[360554141,1746885047213,-775.2,0.00019999,2]
[360554142,1746885047222,-775.2,0.00019999,2]
[360554143,1746885047231,-775.2,0.00019999,2]
[360554144,1746885047240,-396.87627374,0.00019999,2]
[360554145,1746885047252,-378.32372626,0.00019999,2]
[360554146,1746885047263,-775.2,0.00019999,2]
[360554147,1746885047273,-775.2,0.00019999,2]
[360554148,1746885047282,-775.2,0.00019999,2]
[360554149,1746885047292,-775.2,0.00019999,2]
[360554150,1746885047301,-775.2,0.00019999,2]
[360554151,1746885047310,-775.2,0.00019999,2]
[360554152,1746885047319,-775.2,0.00019999,2]
[360554153,1746885047328,-35.09698644,0.00019999,2]
[360554154,1746885047339,-740.10301356,0.00019999,2]
[360554155,1746885047348,-775.2,0.00019999,2]
[360554156,1746885047358,-775.2,0.00019999,2]
[360554157,1746885047367,-775.2,0.00019999,2]
[360554158,1746885047376,-775.2,0.00019999,2]
[360554159,1746885047385,-775.2,0.00019999,2]
[360554160,1746885047394,-775.2,0.00019999,2]
[360554161,1746885047403,-775.2,0.00019999,2]
[360554162,1746885047412,-775.2,0.00019999,2]
[360554163,1746885047421,-775.27579471,0.00019999,2]
[360554164,1746885047430,-400.0,0.00019999,2]
[360554165,1746885047439,-400.0,0.00019999,2]
[360554166,1746885047449,-400.0,0.00019999,2]
[360554167,1746885047458,-400.0,0.00019999,2]
[360554168,1746885047467,-400.0,0.00019999,2]
[360554169,1746885047476,-400.0,0.00019999,2]
[360554170,1746885047485,-400.0,0.00019999,2]
[360554171,1746885047495,-372.38,0.00019999,2]
[360554172,1746885047505,-400.0,0.00019999,2]
[360554173,1746885047516,-400.0,0.00019999,2]
[360554174,1746885047525,-400.0,0.00019999,2]
[360554175,1746885047535,-400.0,0.00019999,2]
[360554176,1746885047544,-400.0,0.00019999,2]
[360554177,1746885047553,-400.0,0.00019999,2]
[360554178,1746885047565,-400.0,0.00019999,2]
[360554179,1746885047576,-188.33319981,0.00019999,2]
[360554180,1746885064523,-291.6019428,0.00017432,2]
[360554181,1746885066002,-291.6019428,0.00017432,2]
[360554182,1746885081588,-153.4,0.00017432,2]
[360554183,1746885089009,929.65,0.00013699,2]
[360554184,1746885096169,-68.9161144,0.00017432,2]
[360554186,1746885295788,500.0,0.00016438,2]
[360554187,1746885296122,500.0,0.00016438,2]
[360554188,1746885296437,500.0,0.00016438,2]
[360554189,1746885296760,500.0,0.00016438,2]
[360554190,1746885297101,156.5938856,0.00016438,2]
[360554191,1746885297125,343.4061144,0.00016438,2]
[360554192,1746885395345,-166.64,0.00018466,2]
[360554193,1746885398715,-216.48552091,0.00018466,2]
[360554194,1746885411117,-269.18136954,0.00018466,2]
[360554195,1746885426179,-554.70706025,0.00018466,2]
[360554196,1746885441136,-200.0,0.00018466,2]
[360554197,1746885456069,-252.253,0.00018466,2]
[360554198,1746885471107,-225.82191172,0.00018373,2]
[360554199,1746885486578,-24.17808828,0.00018373,2]
[360554200,1746885486603,-175.82191172,0.00018466,2]
[360554201,1746885501556,-192.11888246,0.00018466,2]
[360554202,1746885516190,-184.97111754,0.00018466,2]
[360554203,1746885531652,-151.0,0.00018466,2]
[360554204,1746885546066,-268.91018728,0.00018466,2]
[360554205,1746885548116,1077.491075,7.945e-05,2]
[360554206,1746885562848,-188.367901,0.00018466,2]
[360554207,1746885577395,-246.11,0.00018466,2]
[360554208,1746885607641,666.497236,7.945e-05,2]
[360554209,1746885649660,-500.0,0.00018465,2]
[360554210,1746885649694,-500.0,0.00018465,2]
[360554211,1746885649728,-500.0,0.00018465,2]
[360554212,1746885649763,-179.22891502,0.00018465,2]
[360554213,1746885649796,-500.0,0.00018465,2]
[360554214,1746885649830,-500.0,0.00018465,2]
[360554215,1746885649873,-500.0,0.00018465,2]
[360554216,1746885649910,-500.0,0.00018465,2]
[360554217,1746885649944,-500.0,0.00018465,2]
[360554218,1746885649983,-500.0,0.00018465,2]
[360554219,1746885650018,-500.0,0.00018465,2]
[360554220,1746885650058,-500.0,0.00018465,2]
[360554221,1746885650081,-5566.4930493,0.00018466,2]
[360554222,1746885650103,-676.84,0.00018876,2]
[360554223,1746885650127,-200.0,0.00018906,2]
[360554224,1746885650151,-1200.0,0.00018993,2]
[360554225,1746885650176,-300.0,0.00018993,2]
[360554226,1746885650200,-300.0,0.00018993,2]
[360554227,1746885650226,-5640.6,0.00018994,2]
[360554228,1746885650248,-200.0,0.00019063,2]
[360554229,1746885650271,-175.21,0.00019075,2]
[360554230,1746885650300,-180.65466515,0.00019178,2]
[360554231,1746885650322,-151.0,0.00019178,2]
[360554232,1746885650345,-500.0,0.00019562,2]
[360554233,1746885650368,-905.59107555,0.00019596,2]
[360554234,1746885650391,-805.52,0.00019696,2]
[360554235,1746885650414,-269.76,0.000197,2]
[360554236,1746885650437,-200.0,0.00019756,2]
[360554237,1746885650459,-195.4315,0.000198,2]
[360554238,1746885650484,-2456.97496087,0.000198,2]
[360554239,1746885650507,-2500.0,0.000198,2]
[360554240,1746885650535,-2456.9749608,0.00019811,2]
[360554241,1746885650560,-2456.9749608,0.00019822,2]
[360554242,1746885650584,-2456.9749608,0.00019833,2]
[360554243,1746885650607,-200.0,0.00019843,2]
[360554244,1746885650631,-2456.9749608,0.00019844,2]
[360554245,1746885650658,-243.21058188,0.00019854,2]
[360554246,1746885650682,-2456.9749608,0.00019856,2]
[360554247,1746885650706,-2456.9749608,0.00019867,2]
[360554248,1746885650728,-500.0,0.00019873,2]
[360554249,1746885650753,-2456.9749608,0.00019878,2]
[360554250,1746885650777,-625.83964709,0.00019882,2]
[360554251,1746885650801,-207.4,0.00019888,2]
[360554252,1746885650826,-2456.9749608,0.00019889,2]
[360554253,1746885650849,-166.28,0.0001989,2]
[360554254,1746885650873,-166.28,0.0001989,2]
[360554255,1746885650897,-200.0,0.00019892,2]
[360554256,1746885650919,-1057.0539,0.00019896,2]
[360554257,1746885650941,-13652.7675,0.00019896,2]
[360554258,1746885650967,-153.14492261,0.00019896,2]
[360554259,1746885650989,-179.42016384,0.00019899,2]
[360554260,1746885651014,-187.14980737,0.00019899,2]
[360554261,1746885651040,-167.392,0.00019899,2]
[360554262,1746885651064,-1376.133,0.00019899,2]
[360554263,1746885651091,-408.81616428,0.00019899,2]
[360554264,1746885651115,-408.81616428,0.00019899,2]
[360554265,1746885651140,-408.81616428,0.00019899,2]
[360554266,1746885651373,-187.14980737,0.000199,2]
[360554267,1746885651400,-408.81616428,0.000199,2]
[360554268,1746885651424,-408.81616428,0.000199,2]
[360554269,1746885651447,-157950.0398,0.000199,2]
[360554270,1746885651469,-408.81616428,0.000199,2]
[360554271,1746885651493,-408.81616428,0.000199,2]
[360554272,1746885651518,-408.81616428,0.000199,2]
[360554273,1746885651543,-187.14980737,0.000199,2]
[360554274,1746885651566,-12500.0,0.000199,2]
[360554275,1746885651592,-2456.9749608,0.000199,2]
[360554276,1746885651617,-4863.89163514,0.000199,2]
[360554277,1746885668127,4528.86,0.00020575,30]
[360554278,1746885716042,-169.1278363,0.00018365,2]
[360554279,1746885716065,-768.5,0.00019021,2]
[360554280,1746885716090,-4774.6312,0.000198,2]
[360554281,1746885716113,-24474.9079637,0.000198,2]
[360554282,1746885752282,4129.31803745,0.0003,30]
[360554283,1746885759477,10448.45988701,0.0003,30]
[360554285,1746885878297,150.0,0.00019,5]
[360554286,1746885911581,150.0,0.0003,30]
[360554288,1746885963733,500.0,0.00016438,2]
[360554289,1746885964077,500.0,0.00016438,2]
[360554290,1746885966573,500.0,0.00016438,2]
[360554291,1746885966982,500.0,0.00016438,2]
[360554292,1746885967307,500.0,0.00016438,2]
[360554293,1746886027129,-161.19,0.00018466,2]
[360554294,1746886027152,-200.68,0.00018959,2]
[360554295,1746886027174,-77.90286708,0.00018964,2]
[360554296,1746886032135,-275.56717872,0.00018964,2]
[360554297,1746886038131,-351.46803423,0.00018964,2]
[360554298,1746886039137,-186.07908962,0.00018964,2]
[360554299,1746886046092,-108.98283035,0.00018964,2]
[360554300,1746886046129,-240.30996772,0.00018972,2]
[360554301,1746886093438,883.16,0.00013699,2]
[360554302,1746886119980,-390.71546728,0.00018971,2]
[360554303,1746886120003,-250.0,0.00018972,2]
[360554304,1746886120025,-555.75,0.00018973,2]
[360554305,1746886120048,-2272.91,0.0001899,2]
[360554306,1746886120070,-262.82,0.00018994,2]
[360554307,1746886120093,-500.0,0.00019178,2]
[360554308,1746886120122,-500.0,0.00019178,2]
[360554309,1746886120146,-463.30278769,0.00019178,2]
[360554310,1746886120169,-200.0,0.00019741,2]
[360554311,1746886120192,-325.3918564,0.00019742,2]
[360554312,1746886120216,-762.235011,0.00019746,2]
[360554313,1746886120237,-200.0,0.0001975,2]
[360554314,1746886120260,-151.0,0.000198,2]
[360554315,1746886120284,-200.0,0.00019821,2]
[360554316,1746886120308,-200.0,0.0001984,2]
[360554317,1746886120523,-325.3918564,0.00019852,2]
[360554318,1746886120546,-325.3918564,0.00019856,2]
[360554319,1746886120568,-200.0,0.00019866,2]
[360554320,1746886120591,-200.0,0.00019875,2]
[360554321,1746886120614,-200.0,0.00019876,2]
[360554322,1746886120637,-200.0,0.00019889,2]
[360554323,1746886120660,-762.235011,0.00019896,2]
[360554324,1746886120685,-186.21879335,0.00019896,2]
[360554325,1746886120708,-300.0,0.00019898,2]
[360554326,1746886120731,-1000.0,0.00019898,2]
[360554327,1746886120754,-1200.0,0.00019899,2]
[360554328,1746886120776,-295.44623502,0.00019899,2]
[360554329,1746886120800,-175.20873715,0.00019899,2]
[360554330,1746886120824,-175.20873715,0.00019899,2]
[360554331,1746886120847,-175.20873715,0.00019899,2]
[360554332,1746886120871,-175.20873715,0.00019899,2]
[360554333,1746886120895,-175.20873715,0.00019899,2]
[360554334,1746886120919,-175.20873715,0.000199,2]
[360554335,1746886120942,-175.20873715,0.000199,2]
[360554336,1746886120965,-175.20873715,0.000199,2]
[360554337,1746886120989,-175.20873715,0.000199,2]
[360554338,1746886121011,-159.1434442,0.000199,2]
[360554339,1746886121034,-11761.60534691,0.000199,2]
[360554340,1746886141160,-343.18,0.00017074,2]
[360554341,1746886146009,-223.49909439,0.00017074,2]
[360554342,1746886146100,-231.19090561,0.00017074,2]
[360554349,1746886231950,-250.0,0.00018974,2]
[360554350,1746886231960,-2000.0,0.00018979,2]
[360554351,1746886231969,-250.0,0.00018983,2]
[360554352,1746886231979,-2855.0,0.00018987,2]
[360554353,1746886231988,-1200.0,0.00019337,2]
[360554354,1746886231998,-797.87,0.00019338,2]
[360554355,1746886232008,-165.09,0.00019513,2]
[360554356,1746886232017,-177.14,0.00019698,2]
[360554357,1746886232027,-354.26,0.00019699,2]
[360554358,1746886232036,-708.52,0.000197,2]
[360554359,1746886232045,-1003.510187,0.00019899,2]
[360554360,1746886232055,-738.39465309,0.000199,2]
[360554361,1746886232064,-186.21879334,0.000199,2]
[360554362,1746886232073,-175.20873715,0.000199,2]
[360554363,1746886232083,-159.1434442,0.000199,2]
[360554364,1746886232092,-300.75,0.00019943,2]
[360554365,1746886232102,-301.36,0.00019943,2]
[360554366,1746886232111,-304.8,0.00019943,2]
[360554367,1746886232121,-303.25,0.00019943,2]
[360554368,1746886232130,-301.09,0.00019943,2]
[360554369,1746886232145,-304.64,0.00019943,2]
[360554370,1746886232155,-304.65,0.00019943,2]
[360554371,1746886232164,-301.11,0.00019943,2]
[360554372,1746886232173,-303.66,0.00019943,2]
[360554373,1746886232184,-301.11,0.00019943,2]
[360554374,1746886232194,-301.5,0.00019943,2]
[360554375,1746886232203,-301.05,0.00019955,2]
[360554376,1746886232213,-302.61,0.00019955,2]
[360554377,1746886232225,-207.4,0.00019961,2]
[360554378,1746886232234,-302.7,0.00019964,2]
[360554379,1746886232243,-304.01,0.00019971,2]
[360554381,1746886232252,-175.49157778,0.00019971,2]
[360554384,1746886232262,-161.82166209,0.00019971,2]
[360554385,1746886232272,-184.26828735,0.00019971,2]
[360554387,1746886232281,-263.69504984,0.00019971,2]
[360554389,1746886232293,-301.07,0.00019971,2]
[360554391,1746886232303,-303.48,0.00019972,2]
[360554393,1746886232313,-302.31,0.00019972,2]
[360554395,1746886232323,-305.51,0.00019972,2]
[360554397,1746886232332,-304.04,0.00019972,2]
[360554399,1746886232342,-400.0,0.00019972,2]
[360554422,1746886232548,-400.0,0.00019972,2]
[360554424,1746886232558,-400.0,0.00019972,2]
[360554426,1746886232568,-408.37,0.00019972,2]
[360554428,1746886232577,-93.88591696,0.00019972,2]
[360554430,1746886232589,-306.11408304,0.00019972,2]
[360554433,1746886232598,-400.0,0.00019972,2]
[360554435,1746886232607,-418.12,0.00019972,2]
[360554436,1746886232617,-400.0,0.00019972,2]
[360554438,1746886232626,-400.0,0.00019972,2]
[360554440,1746886232636,-400.0,0.00019972,2]
[360554442,1746886232646,-400.0,0.00019972,2]
[360554444,1746886232655,-616.06,0.00019972,2]
[360554447,1746886232665,-400.0,0.00019972,2]
[360554449,1746886232674,-400.0,0.00019972,2]
[360554450,1746886232684,-22.63153296,0.00019972,2]
[360554453,1746886232696,-377.36846704,0.00019972,2]
[360554455,1746886232706,-400.0,0.00019972,2]
[360554457,1746886232715,-400.0,0.00019972,2]
[360554459,1746886232725,-400.0,0.00019972,2]
[360554461,1746886232735,-400.0,0.00019972,2]
[360554463,1746886232745,-682.67,0.00019972,2]
[360554465,1746886232754,-400.0,0.00019972,2]
[360554467,1746886232763,-400.0,0.00019972,2]
[360554469,1746886232772,-400.0,0.00019972,2]
[360554471,1746886232782,-400.0,0.00019972,2]
[360554473,1746886232791,-400.0,0.00019972,2]
[360554475,1746886232800,-1000.0,0.00019972,2]
[360554477,1746886232810,-400.0,0.00019972,2]
[360554479,1746886232819,-400.0,0.00019972,2]
[360554481,1746886232829,-400.0,0.00019972,2]
[360554483,1746886232838,-400.0,0.00019972,2]
[360554485,1746886232847,-400.0,0.00019972,2]
[360554487,1746886232857,-400.0,0.00019972,2]
[360554489,1746886232866,-400.0,0.00019972,2]
[360554491,1746886232875,-400.0,0.00019972,2]
[360554493,1746886232885,-400.0,0.00019972,2]
[360554495,1746886232894,-400.0,0.00019972,2]
[360554497,1746886232903,-400.0,0.00019972,2]
[360554499,1746886232913,-400.0,0.00019972,2]
[360554501,1746886232923,-400.0,0.00019972,2]
[360554503,1746886232932,-1492.23,0.00019972,2]
[360554505,1746886232941,-400.0,0.00019972,2]
[360554507,1746886232950,-400.0,0.00019972,2]
[360554509,1746886232960,-400.0,0.00019972,2]
[360554511,1746886232969,-400.0,0.00019972,2]
[360554513,1746886232978,-400.0,0.00019972,2]
[360554515,1746886232987,-400.0,0.00019972,2]
[360554517,1746886232997,-400.0,0.00019972,2]
[360554519,1746886233006,-400.0,0.00019972,2]
[360554521,1746886233016,-400.0,0.00019972,2]
[360554523,1746886233025,-314.71279589,0.00019972,2]
[360554524,1746886233037,-456.2,0.00019972,2]
[360554526,1746886233047,-400.0,0.00019972,2]
[360554528,1746886233057,-1301.19,0.00019972,2]
[360554530,1746886233067,-438.84159398,0.00019972,2]
[360554533,1746886233076,-400.0,0.00019972,2]
[360554535,1746886233086,-400.0,0.00019972,2]
[360554537,1746886233095,-400.0,0.00019972,2]
[360554539,1746886233106,-427.02,0.00019972,2]
[360554541,1746886233115,-493.73,0.00019972,2]
[360554543,1746886233124,-400.0,0.00019972,2]
[360554545,1746886233137,-400.0,0.00019972,2]
[360554547,1746886233147,-493.28,0.00019972,2]
[360554549,1746886233156,-400.0,0.00019972,2]
[360554551,1746886233166,-400.0,0.00019972,2]
[360554553,1746886233176,-400.0,0.00019972,2]
[360554555,1746886233185,-400.0,0.00019972,2]
[360554557,1746886233195,-802.82,0.00019972,2]
[360554559,1746886233204,-603.75,0.00019972,2]
[360554561,1746886233215,-400.0,0.00019972,2]
[360554563,1746886233226,-400.0,0.00019972,2]
[360554565,1746886233235,-416.81,0.00019972,2]
[360554567,1746886233245,-400.0,0.00019972,2]
[360554569,1746886233254,-436.12,0.00019972,2]
[360554571,1746886233264,-400.0,0.00019972,2]
[360554573,1746886233274,-582.28,0.00019972,2]
[360554575,1746886233283,-496.28,0.00019972,2]
[360554577,1746886233296,-400.0,0.00019972,2]
[360554579,1746886233306,-400.0,0.00019972,2]
[360554581,1746886233317,-463.84130386,0.00019972,2]
[360554583,1746886233326,-416.98,0.00019972,2]
[360554585,1746886233336,-400.0,0.00019972,2]
[360554587,1746886233347,-400.0,0.00019972,2]
[360554589,1746886233356,-400.0,0.00019972,2]
[360554590,1746886233366,-400.0,0.00019972,2]
[360554592,1746886233376,-400.0,0.00019972,2]
[360554595,1746886233385,-400.0,0.00019972,2]
[360554596,1746886233395,-484.74187652,0.00019972,2]
[360554599,1746886233404,-19865.0,0.00019973,2]
[360554600,1746886233414,-500.0,0.00019973,2]
[360554602,1746886233424,-500.0,0.00019973,2]
[360554605,1746886233435,-1124.0,0.00019973,2]
[360554606,1746886233445,-500.0,0.00019973,2]
[360554608,1746886233454,-500.0,0.00019973,2]
[360554609,1746886233464,-500.0,0.00019973,2]
[360554610,1746886233474,-300.67,0.00019979,2]
[360554611,1746886233483,-645.8937496,0.00019981,2]
[360554612,1746886233492,-166.28,0.00019986,2]
[360554613,1746886233501,-301.51,0.00019987,2]
[360554614,1746886233510,-300.81,0.00019987,2]
[360554615,1746886233519,-166.28,0.00019987,2]
[360554616,1746886233529,-151.0,0.00019987,2]
[360554617,1746886233540,-166.28,0.00019988,2]
[360554618,1746886233550,-166.28,0.00019988,2]
[360554619,1746886233560,-166.28,0.00019988,2]
[360554620,1746886233570,-150.0,0.00019989,2]
[360554621,1746886233579,-77154.47099105,0.00019994,2]
[360554622,1746886233589,-400.0,0.00019995,2]
[360554623,1746886233598,-1042.84,0.00019995,2]
[360554624,1746886233607,-404.89,0.00019995,2]
[360554625,1746886233616,-400.0,0.00019995,2]
[360554626,1746886233626,-8599.0193529,0.00019996,2]
[360554627,1746886233636,-44346.25146916,0.00019996,2]
[360554628,1746886233664,-400.0,0.00019972,2]
[360554629,1746886233673,-100.0,0.00019972,2]
[360554631,1746886237918,-307.58196487,0.00019972,2]
[360554632,1746886237930,-404.81620413,0.00019972,2]
[360554633,1746886237940,-400.0,0.00019972,2]
[360554634,1746886237952,-345.78438349,0.00019972,2]
[360554635,1746886237970,-301.18,0.00019979,2]
[360554636,1746886237985,-150.87233092,0.00019996,2]
[360554637,1746886238094,-5148.83391713,0.00019996,2]
[360554638,1746886238154,-401.85854131,0.00019972,2]
[360554639,1746886238167,-9873.58828279,0.00019996,2]
[360554640,1746886238179,-470.20034639,0.00019996,2]
[360554641,1746886238193,-514.91999994,0.00019996,2]
[360554659,1746886240159,-429.32500027,0.00019843,2]
[360554660,1746886240413,-90.50068254,0.00019843,2]
[360554661,1746886240427,-493.03620572,0.00019843,2]
[360554662,1746886240448,-1620.83220847,0.00019843,2]
[360554663,1746886240461,-818.91499462,0.000199,2]
[360554664,1746886240476,-1437.44166516,0.000199,2]
[360554665,1746886240487,-400.0,0.00019972,2]
[360554666,1746886240501,-412.43616069,0.00019972,2]
[360554667,1746886240512,-500.0,0.00019972,2]
[360554668,1746886240523,-1944.20504787,0.00019996,2]
[360554669,1746886240535,-236.82089258,0.00019997,2]
[360554670,1746886240550,-163.17910742,0.00019997,2]
[360554671,1746886240560,-400.0,0.00019997,2]
[360554672,1746886240574,-44.28691609,0.00019997,2]
[360554673,1746886240586,-405.71308391,0.00019997,2]
[360554674,1746886240596,-400.0,0.00019997,2]
[360554675,1746886240605,-400.0,0.00019997,2]
[360554676,1746886240615,-169.20968572,0.00019997,2]
[360554692,1746886243058,-162.58919863,0.00019178,2]
[360554693,1746886243067,-447.32815742,0.00019972,2]
[360554694,1746886243077,-999.39,0.00019972,2]
[360554695,1746886243088,-280.79031428,0.00019997,2]
[360554696,1746886243098,-400.0,0.00019997,2]
[360554697,1746886243108,-400.0,0.00019997,2]
[360554698,1746886243117,-400.0,0.00019997,2]
[360554699,1746886243127,-400.0,0.00019997,2]
[360554700,1746886243139,-400.0,0.00019997,2]
[360554701,1746886243149,-400.0,0.00019997,2]
[360554702,1746886243158,-400.0,0.00019997,2]
[360554703,1746886243167,-400.0,0.00019997,2]
[360554704,1746886243178,-153.07847465,0.00019997,2]
[360554705,1746886243190,-246.92152535,0.00019997,2]
[360554706,1746886243199,-400.0,0.00019997,2]
[360554707,1746886243209,-400.0,0.00019997,2]
[360554708,1746886243219,-380.61580078,0.00019997,2]
[360554709,1746886243231,-19.38419922,0.00019997,2]